bitfinex-derivatives/quotes_BTCF0:USTF0_20260111
["timestamp","ask_amount","ask_price","bid_price","bid_amount"]
[1768167383374,0.15185727,90740.0,90728.0,0.011037]
[1768167387178,0.16289327,90740.0,90726.0,0.011037]
[1768167389977,0.16289327,90740.0,90727.0,0.011037]
[1768167392079,0.011036,90738.0,90727.0,0.011037]
[1768167392583,0.011036,90738.0,90725.0,0.011037]
[1768167393774,0.15185727,90740.0,90725.0,0.011037]
[1768167393973,0.011036,90737.0,90725.0,0.011037]
[1768167394488,0.011036,90736.0,90724.0,0.10780483]
[1768167395781,0.15185727,90740.0,90724.0,0.098235]
[1768167396085,0.011037,90730.0,90720.0,0.1096315]
[1768167396382,0.16289427,90730.0,90720.0,0.1096315]
[1768167398476,0.15185727,90730.0,90720.0,0.1096315]
[1768167399880,0.15185727,90730.0,90715.0,0.00991208]
[1768167400184,0.15185727,90730.0,90715.0,0.011038]
[1768167400372,0.16289427,90730.0,90715.0,0.011038]
[1768167400882,0.16289427,90730.0,90716.0,0.00991208]
[1768167401182,0.15185727,90730.0,90717.0,0.011038]
[1768167401380,0.15185727,90730.0,90717.0,0.1206695]
[1768167401983,0.15185727,90730.0,90719.0,0.011038]
[1768167403786,0.15185727,90730.0,90721.0,0.011038]
[1768167407879,0.15185727,90730.0,90719.0,0.011038]
[1768167411094,0.16289427,90730.0,90717.0,0.11075742]
[1768167411493,0.16289427,90730.0,90717.0,0.09971942]
[1768167412092,0.011037,90729.0,90717.0,0.011038]
[1768167412289,0.011037,90728.0,90714.0,0.011038]
[1768167412594,0.011037,90727.0,90714.0,0.011038]
[1768167413186,0.011037,90727.0,90714.0,0.1206695]
[1768167413594,0.011037,90727.0,90715.0,0.011038]
[1768167413795,0.011037,90729.0,90716.0,0.011038]
[1768167428410,0.011037,90729.0,90717.0,0.011038]
[1768167434812,0.104837,90732.0,90718.0,0.011038]
[1768167435005,0.011037,90727.0,90713.0,0.011039]
[1768167435203,0.011038,90721.0,90711.0,0.09525351]
[1768167435404,0.011038,90723.0,90708.0,0.0938]
[1768167436403,0.011038,90723.0,90709.0,0.011039]
[1768167438307,0.09377831,90725.0,90708.0,0.00916731]
[1768167439411,0.011038,90722.0,90708.0,0.00916731]
[1768167440314,0.011038,90720.0,90706.0,0.01104]
[1768167440703,0.011038,90718.0,90703.0,0.11400731]
[1768167440903,0.011038,90718.0,90704.0,0.00916731]
[1768167442206,0.011038,90718.0,90705.0,0.01104]
[1768167444813,0.011038,90716.0,90704.0,0.00916731]
[1768167445321,0.011038,90719.0,90704.0,0.02020731]
[1768167445920,0.011038,90719.0,90706.0,0.01104]
[1768167447321,0.011037,90725.0,90710.0,0.011039]
[1768167447924,0.011037,90725.0,90710.0,0.02020631]
[1768167448120,0.011037,90725.0,90712.0,0.011039]
[1768167451127,0.011037,90725.0,90713.0,0.011039]
[1768167451625,0.011037,90728.0,90710.0,0.00916731]
[1768167452223,0.011037,90728.0,90716.0,0.011038]
[1768167453334,0.011037,90728.0,90710.0,0.00916731]
[1768167454433,0.011037,90728.0,90714.0,0.011038]
[1768167457035,0.011037,90726.0,90714.0,0.011038]
[1768167459433,0.011037,90725.0,90712.0,0.011039]
[1768167460137,0.011037,90723.0,90711.0,0.02063844]
[1768167467237,0.011038,90721.0,90711.0,0.00959944]
[1768167471343,0.011038,90723.0,90711.0,0.00959944]
[1768167471542,0.011038,90723.0,90712.0,0.011039]
[1768167472344,0.09925909,90726.0,90707.0,0.00959944]
[1768167472542,0.011038,90720.0,90707.0,0.00959944]
[1768167473729,0.011038,90718.0,90703.0,0.01104]
[1768167474343,0.011038,90721.0,90705.0,0.01104]
[1768167475247,0.011038,90719.0,90705.0,0.01104]
[1768167475747,0.011039,90715.0,90701.0,0.01104]
[1768167475945,0.011038,90718.0,90701.0,0.01104]
[1768167476245,0.011038,90718.0,90702.0,0.00959944]
[1768167477236,0.011038,90716.0,90702.0,0.00959944]
[1768167480246,0.011038,90716.0,90693.0,0.0938]
[1768167480247,0.09925909,90716.0,90695.0,0.011041]
[1768167480448,0.09925909,90714.0,90697.0,0.011041]
[1768167481242,0.09925909,90714.0,90697.0,0.02526113]
[1768167481442,0.011039,90711.0,90697.0,0.02526113]
[1768167485346,0.15198266,90710.0,90697.0,0.02526113]
[1768167486752,0.011039,90707.0,90697.0,0.01422013]
[1768167487049,0.011039,90709.0,90695.0,0.011041]
[1768167489952,0.01104,90707.0,90695.0,0.02521178]
[1768167495574,0.011039,90708.0,90697.0,0.011041]
[1768167503682,0.16302166,90710.0,90698.0,0.01104]
[1768167504282,0.011039,90710.0,90698.0,0.01104]
[1768167504482,0.011039,90710.0,90698.0,0.02049274]
[1768167504782,0.16302166,90710.0,90698.0,0.02049274]
[1768167506183,0.16302166,90710.0,90695.0,0.01166352]
[1768167506384,0.16302166,90710.0,90698.0,0.01104]
[1768167506773,0.011039,90714.0,90698.0,0.09580487]
[1768167506974,0.011039,90712.0,90700.0,0.01104]
[1768167507286,0.011039,90714.0,90701.0,0.01104]
[1768167507783,0.09925421,90719.0,90698.0,0.09580487]
[1768167507988,0.011038,90716.0,90704.0,0.01104]
[1768167508185,0.09925421,90719.0,90699.0,0.00945274]
[1768167508376,0.011038,90720.0,90704.0,0.00945274]
[1768167508577,0.16302066,90720.0,90704.0,0.00945274]
[1768167509079,0.16302066,90720.0,90707.0,0.011039]
[1768167513288,0.16302066,90720.0,90702.0,0.09484387]
[1768167513492,0.16302066,90720.0,90707.0,0.011039]
[1768167517497,0.011038,90719.0,90707.0,0.011039]
[1768167520492,0.011038,90719.0,90702.0,0.09388387]
[1768167521394,0.011038,90719.0,90705.0,0.01104]
[1768167521595,0.011038,90717.0,90705.0,0.01104]
[1768167522291,0.011038,90716.0,90703.0,0.01104]
[1768167522698,0.011038,90716.0,90704.0,0.01104]
[1768167523397,0.011038,90719.0,90706.0,0.01104]
[1768167524393,0.15198266,90720.0,90704.0,0.01104]
[1768167524589,0.011038,90716.0,90704.0,0.01104]
[1768167525299,0.104838,90716.0,90704.0,0.01104]
[1768167525899,0.0938,90716.0,90702.0,0.09388387]
[1768167526095,0.011039,90714.0,90702.0,0.10492387]
[1768167526494,0.0938,90716.0,90701.0,0.00945274]
[1768167526693,0.011039,90713.0,90701.0,0.01104]
[1768167526993,0.15198266,90711.0,90701.0,0.01104]
[1768167527494,0.15198266,90711.0,90698.0,0.0091169]
[1768167527696,0.15198266,90711.0,90699.0,0.01104]
[1768167530502,0.15198266,90711.0,90700.0,0.01104]
[1768167530798,0.15198266,90711.0,90701.0,0.01104]
[1768167534504,0.15198266,90711.0,90698.0,0.0091169]
[1768167535412,0.15198266,90711.0,90701.0,0.01104]
[1768167537206,0.15198266,90711.0,90702.0,0.01104]
[1768167538404,0.15198266,90711.0,90703.0,0.01104]
[1768167538806,0.15198266,90711.0,90705.0,0.01104]
[1768167540305,0.0938,90716.0,90705.0,0.01104]
[1768167541410,0.011038,90715.0,90702.0,0.01104]
[1768167541602,0.011038,90715.0,90698.0,0.0041569]
[1768167542002,0.011038,90715.0,90702.0,0.01104]
[1768167542507,0.011038,90715.0,90698.0,0.0041569]
[1768167542508,0.0938,90716.0,90698.0,0.0041569]
[1768167543408,0.0938,90716.0,90704.0,0.01104]
[1768167544310,0.19663581,90716.0,90704.0,0.01104]
[1768167544710,0.18559781,90716.0,90701.0,0.01104]
[1768167546611,0.011039,90714.0,90701.0,0.01104]
[1768167547506,0.011039,90714.0,90702.0,0.01104]
[1768167548811,0.011039,90714.0,90702.0,0.00604]
[1768167550313,0.011039,90713.0,90700.0,0.01104]
[1768167550512,0.011039,90713.0,90701.0,0.01104]
[1768167552219,0.011039,90715.0,90702.0,0.01104]
[1768167552511,0.18559781,90716.0,90704.0,0.01104]
[1768167557007,0.18559781,90716.0,90698.0,0.0031969]
[1768167557508,0.18559781,90716.0,90704.0,0.01104]
[1768167561622,0.09734653,90711.0,90700.0,0.01104]
[1768167561820,0.09734653,90711.0,90691.0,0.011041]
[1768167562019,0.09734653,90711.0,90692.0,0.00934627]
[1768167562213,0.09734653,90711.0,90693.0,0.00934627]
[1768167563422,0.09734653,90711.0,90699.0,0.01104]
[1768167564015,0.09734653,90711.0,90699.0,0.00604]
[1768167564324,0.10838553,90711.0,90699.0,0.00604]
[1768167564527,0.011039,90710.0,90699.0,0.00604]
[1768167567626,0.011039,90710.0,90697.0,0.011041]
[1768167568927,0.011039,90710.0,90698.0,0.01104]
[1768167571327,0.011039,90710.0,90693.0,0.00838627]
[1768167572429,0.011039,90710.0,90698.0,0.01104]
[1768167576636,0.09734653,90711.0,90698.0,0.01104]
[1768167578537,0.09734653,90711.0,90693.0,0.00742627]
[1768167578929,0.09734653,90711.0,90699.0,0.01104]
[1768167581146,0.09734653,90711.0,90701.0,0.01104]
[1768167581656,0.011039,90714.0,90701.0,0.01104]
[1768167582844,0.011039,90713.0,90701.0,0.01104]
[1768167585554,0.011039,90713.0,90701.0,0.00704]
[1768167588957,0.011039,90712.0,90701.0,0.00704]
[1768167591253,0.011039,90712.0,90699.0,0.01104]
[1768167591559,0.011039,90711.0,90699.0,0.01104]
[1768167591951,0.011039,90710.0,90699.0,0.01104]
[1768167592859,0.011039,90710.0,90695.0,0.00893167]
[1768167594560,0.011039,90710.0,90698.0,0.011041]
[1768167595452,0.011039,90709.0,90698.0,0.011041]
[1768167599661,0.011039,90708.0,90696.0,0.011041]
[1768167599864,0.011039,90708.0,90693.0,0.00893267]
[1768167601364,0.01104,90707.0,90693.0,0.01997367]
[1768167602065,0.01104,90707.0,90694.0,0.00989167]
[1768167603266,0.01104,90707.0,90695.0,0.011041]
[1768167604564,0.011039,90710.0,90695.0,0.011041]
[1768167604759,0.011039,90710.0,90696.0,0.01032742]
[1768167605157,0.011039,90710.0,90697.0,0.011041]
[1768167605360,0.16302541,90710.0,90697.0,0.011041]
[1768167610071,0.011039,90708.0,90694.0,0.011041]
[1768167613869,0.011039,90708.0,90696.0,0.011041]
[1768167614666,0.01104,90707.0,90693.0,0.011041]
[1768167615267,0.01104,90707.0,90694.0,0.011041]
[1768167615874,0.01104,90707.0,90692.0,0.01329813]
[1768167616063,0.01104,90707.0,90691.0,0.00985531]
[1768167617472,0.01104,90707.0,90695.0,0.011041]
[1768167618273,0.25442415,90710.0,90697.0,0.011041]
[1768167618872,0.011039,90709.0,90697.0,0.011041]
[1768167619973,0.24338515,90710.0,90692.0,0.01315298]
[1768167619974,0.24338515,90710.0,90694.0,0.011041]
[1768167620273,0.01104,90707.0,90695.0,0.011041]
[1768167622177,0.01104,90707.0,90696.0,0.011041]
[1768167623173,0.011039,90709.0,90697.0,0.011041]
[1768167623374,0.011039,90709.0,90698.0,0.01104]
[1768167623577,0.24338515,90710.0,90698.0,0.01104]
[1768167624279,0.011039,90709.0,90696.0,0.011041]
[1768167624579,0.01104,90707.0,90694.0,0.011041]
[1768167625776,0.01104,90707.0,90695.0,0.011041]
[1768167626380,0.01104,90707.0,90696.0,0.011041]
[1768167629882,0.25442415,90710.0,90696.0,0.011041]
[1768167630576,0.25442415,90710.0,90697.0,0.011041]
[1768167632582,0.25442415,90710.0,90698.0,0.01104]
[1768167633881,0.25442415,90710.0,90699.0,0.01104]
[1768167634082,0.104839,90713.0,90694.0,0.01102056]
[1768167634385,0.15198641,90710.0,90694.0,0.01102056]
[1768167635382,0.15198641,90710.0,90700.0,0.01104]
[1768167636886,0.15198641,90710.0,90694.0,0.00906056]
[1768167637473,0.15198641,90710.0,90700.0,0.01104]
[1768167637885,0.15198641,90710.0,90701.0,0.01104]
[1768167639890,0.09400525,90712.0,90694.0,0.00906056]
[1768167640090,0.0938,90713.0,90694.0,0.00906056]
[1768167640387,0.0938,90713.0,90705.0,0.01104]
[1768167641689,0.0938,90713.0,90702.0,0.01104]
[1768167643691,0.0938,90713.0,90703.0,0.01104]
[1768167644093,0.0938,90713.0,90704.0,0.01104]
[1768167647894,0.0938,90713.0,90696.0,0.011041]
[1768167647895,0.0938,90713.0,90703.0,0.01104]
[1768167650991,0.0938,90713.0,90694.0,0.00710056]
[1768167651193,0.0938,90713.0,90702.0,0.01104]
[1768167651493,0.15198641,90710.0,90702.0,0.01104]
[1768167654282,0.15198641,90710.0,90703.0,0.01104]
[1768167655294,0.24578641,90713.0,90703.0,0.01104]
[1768167658097,0.24578641,90713.0,90692.0,0.10382905]
[1768167658295,0.15198641,90710.0,90692.0,0.10382905]
[1768167658596,0.15198641,90710.0,90703.0,0.01104]
[1768167658795,0.24578641,90713.0,90703.0,0.01104]
[1768167659496,0.24578641,90713.0,90693.0,0.011041]
[1768167659699,0.15198641,90710.0,90693.0,0.011041]
[1768167660190,0.15198641,90710.0,90693.0,0.02206156]
[1768167660392,0.15198641,90710.0,90703.0,0.01104]
[1768167660597,0.33979166,90713.0,90703.0,0.01104]
[1768167663498,0.33979166,90713.0,90700.0,0.01104]
[1768167663699,0.15198641,90710.0,90700.0,0.01104]
[1768167664102,0.19884425,90713.0,90700.0,0.01104]
[1768167664290,0.15198641,90710.0,90701.0,0.01104]
[1768167664494,0.15198641,90711.0,90702.0,0.01104]
[1768167664801,0.15198641,90711.0,90700.0,0.01104]
[1768167665206,0.15198641,90711.0,90693.0,0.01102056]
[1768167666405,0.15198641,90711.0,90700.0,0.01104]
[1768167667310,0.19884425,90713.0,90700.0,0.01104]
[1768167667605,0.09189641,90712.0,90700.0,0.01104]
[1768167669601,0.09189641,90712.0,90693.0,0.01102056]
[1768167669807,0.09189641,90712.0,90705.0,0.01104]
[1768167670406,0.09189641,90712.0,90696.0,0.011041]
[1768167671205,0.09189641,90712.0,90704.0,0.01104]
[1768167671409,0.09189641,90712.0,90706.0,0.011039]
[1768167671702,0.09189641,90712.0,90695.0,0.01651706]
[1768167671900,0.09189641,90712.0,90704.0,0.01104]
[1768167672307,0.09189641,90712.0,90695.0,0.01355706]
[1768167672807,0.09189641,90712.0,90706.0,0.01104]
[1768167674002,0.0938,90713.0,90707.0,0.011039]
[1768167674212,0.18745298,90717.0,90709.0,0.011039]
[1768167675710,0.18745298,90717.0,90711.0,0.011039]
[1768167677201,0.09365298,90716.0,90709.0,0.011039]
[1768167679410,0.09365298,90716.0,90707.0,0.0514188]
[1768167679613,0.09365298,90716.0,90707.0,0.05276005]
[1768167680112,0.09365298,90716.0,90710.0,0.011039]
[1768167680313,0.011037,90725.0,90707.0,0.05276005]
[1768167680505,0.0938,90724.0,90707.0,0.05276005]
[1768167681412,0.0938,90724.0,90701.0,0.01104]
[1768167681608,0.0938,90724.0,90707.0,0.05332244]
[1768167681810,0.0938,90724.0,90701.0,0.06364695]
[1768167682313,0.09365298,90723.0,90701.0,0.01104]
[1768167682513,0.09365298,90723.0,90710.0,0.011039]
[1768167682714,0.09365298,90721.0,90710.0,0.011039]
[1768167684807,0.09365298,90721.0,90711.0,0.011039]
[1768167686115,0.09365298,90721.0,90712.0,0.011039]
[1768167686511,0.0938,90720.0,90703.0,0.01104]
[1768167688112,0.09365298,90721.0,90704.0,0.01104]
[1768167688310,0.0938,90720.0,90704.0,0.01104]
[1768167689620,0.0938,90720.0,90713.0,0.011039]
[1768167689809,0.0938,90720.0,90704.0,0.01104]
[1768167691322,0.09365298,90721.0,90713.0,0.011039]
[1768167691509,0.0938,90720.0,90713.0,0.011039]
[1768167691711,0.0938,90719.0,90713.0,0.011039]
[1768167692018,0.0938,90719.0,90704.0,0.01104]
[1768167692319,0.0938,90719.0,90712.0,0.011039]
[1768167693220,0.0938,90719.0,90704.0,0.01104]
[1768167693421,0.0938,90719.0,90712.0,0.011039]
[1768167693618,0.0938,90719.0,90704.0,0.11537044]
[1768167693827,0.0938,90719.0,90701.0,0.01104]
[1768167693828,0.0938,90734.0,90722.0,0.011038]
[1768167694013,0.0938,90733.0,90723.0,0.011037]
[1768167694213,0.0938,90733.0,90724.0,0.011037]
[1768167694824,0.0938,90733.0,90726.0,0.011037]
[1768167695024,0.0938,90733.0,90723.0,0.011037]
[1768167695231,0.0938,90733.0,90725.0,0.011037]
[1768167696725,0.0938,90733.0,90716.0,0.12433816]
[1768167697028,0.0938,90736.0,90729.0,0.011037]
[1768167697720,0.0938,90736.0,90726.0,0.011037]
[1768167698518,0.0938,90736.0,90726.0,0.008037]
[1768167699626,0.09996539,90736.0,90726.0,0.008037]
[1768167699918,0.00616539,90736.0,90728.0,0.011037]
[1768167700226,0.0938,90738.0,90731.0,0.011036]
[1768167701021,0.0938,90738.0,90728.0,0.011037]
[1768167701420,0.0938,90738.0,90729.0,0.011037]
[1768167702228,0.10602083,90738.0,90729.0,0.011037]
[1768167703229,0.01274563,90737.0,90729.0,0.011037]
[1768167705733,0.01274563,90737.0,90729.0,0.008037]
[1768167707125,0.01274563,90737.0,90722.0,0.011038]
[1768167709433,0.01274563,90737.0,90732.0,0.011036]
[1768167712733,0.01274563,90737.0,90732.0,0.008036]
[1768167714332,0.01274563,90737.0,90730.0,0.011037]
[1768167715435,0.01274563,90737.0,90724.0,0.011037]
[1768167716438,0.02378163,90737.0,90724.0,0.011037]
[1768167718937,0.02378163,90737.0,90725.0,0.011037]
[1768167719138,0.01274563,90737.0,90726.0,0.011037]
[1768167720546,0.01274563,90737.0,90718.0,0.12433816]
[1768167720743,0.01274563,90737.0,90719.0,0.011038]
[1768167722041,0.01274563,90737.0,90719.0,0.13537616]
[1768167722439,0.0938,90738.0,90731.0,0.011036]
[1768167723142,0.02324299,90744.0,90725.0,0.12433816]
[1768167723338,0.011034,90756.0,90741.0,0.011035]
[1768167723339,0.0938,90747.0,90741.0,0.011035]
[1768167723539,0.0938,90751.0,90734.0,0.12433816]
[1768167723833,0.0938,90751.0,90734.0,0.11989893]
[1768167724535,0.0938,90751.0,90738.0,0.011036]
[1768167724740,0.1240927,90751.0,90738.0,0.011036]
[1768167725046,0.1240927,90751.0,90734.0,0.09619845]
[1768167726049,0.0336442,90750.0,90734.0,0.09619845]
[1768167726439,0.0336442,90750.0,90737.0,0.011036]
[1768167727249,0.0336442,90750.0,90738.0,0.011036]
[1768167727449,0.18549497,90750.0,90738.0,0.011036]
[1768167729050,0.0465486,90748.0,90736.0,0.011036]
[1768167730545,0.011035,90741.0,90729.0,0.011037]
[1768167730750,0.15185077,90740.0,90729.0,0.011037]
[1768167733845,0.011035,90741.0,90729.0,0.011037]
[1768167734045,0.15185077,90740.0,90729.0,0.011037]
[1768167734852,0.011036,90739.0,90728.0,0.09547781]
[1768167735052,0.011036,90739.0,90727.0,0.011037]
[1768167738556,0.011036,90739.0,90727.0,0.06259311]
[1768167739050,0.011036,90739.0,90727.0,0.011037]
[1768167739555,0.011036,90739.0,90725.0,0.01654819]
[1768167742053,0.04110967,90738.0,90725.0,0.00551119]
[1768167742360,0.011036,90732.0,90725.0,0.09931119]
[1768167742949,0.14675581,90738.0,90725.0,0.09931119]
[1768167744851,0.13571981,90738.0,90725.0,0.11034819]
[1768167745242,0.13571981,90738.0,90727.0,0.011037]
[1768167746161,0.04110967,90738.0,90727.0,0.011037]
[1768167746465,0.04110967,90738.0,90725.0,0.09931119]
[1768167747463,0.04110967,90738.0,90728.0,0.011037]
[1768167748362,0.15185077,90740.0,90728.0,0.011037]
[1768167749277,0.15185077,90740.0,90730.0,0.011037]
[1768167750159,0.19296044,90740.0,90730.0,0.011037]
[1768167759357,0.04110967,90740.0,90731.0,0.011036]
[1768167759662,0.19296044,90740.0,90725.0,0.09931119]
[1768167761564,0.19296044,90740.0,90730.0,0.011037]
[1768167763866,0.19296044,90740.0,90732.0,0.011036]
[1768167768973,0.04274194,90739.0,90732.0,0.011036]
[1768167772472,0.04274194,90739.0,90725.0,0.09931119]
[1768167773370,0.04274194,90739.0,90730.0,0.011037]
[1768167774772,0.04274194,90739.0,90731.0,0.011036]
[1768167782479,0.04274194,90739.0,90732.0,0.011036]
[1768167782865,0.04274194,90739.0,90725.0,0.00551119]
[1768167783381,0.04274194,90739.0,90730.0,0.011037]
[1768167784383,0.04274194,90739.0,90727.0,0.011037]
[1768167785281,0.04274194,90739.0,90729.0,0.011037]
[1768167789175,0.04274194,90739.0,90731.0,0.011037]
[1768167794182,0.04274194,90739.0,90725.0,0.00551119]
[1768167794183,0.04274194,90739.0,90729.0,0.011037]
[1768167799789,0.04274194,90739.0,90730.0,0.011037]
[1768167810210,0.04274194,90739.0,90725.0,0.00551119]
[1768167811410,0.04274194,90739.0,90730.0,0.011037]
[1768167814212,0.04274194,90739.0,90731.0,0.011036]
[1768167817710,0.04274194,90739.0,90725.0,0.00551119]
[1768167818214,0.04274194,90739.0,90730.0,0.011037]
[1768167819108,0.04274194,90739.0,90732.0,0.011036]
[1768167822820,0.04274194,90739.0,90725.0,0.00551119]
[1768167826325,0.04274194,90739.0,90729.0,0.011037]
[1768167826516,0.04274194,90739.0,90730.0,0.011037]
[1768167827124,0.04274194,90739.0,90731.0,0.011036]
[1768167827319,0.04274194,90739.0,90732.0,0.011036]
[1768167828819,0.04274194,90739.0,90733.0,0.011036]
[1768167830725,0.04274194,90739.0,90726.0,0.011037]
[1768167830926,0.04274194,90739.0,90733.0,0.011036]
[1768167831227,0.04274194,90739.0,90726.0,0.011037]
[1768167831525,0.04274194,90739.0,90725.0,0.00551119]
[1768167831823,0.04274194,90739.0,90734.0,0.011036]
[1768167832415,9.4e-07,90739.0,90737.0,0.011036]
[1768167832621,0.09461014,90744.0,90737.0,0.011036]
[1768167834828,0.01979485,90743.0,90737.0,0.011036]
[1768167837831,0.01979485,90743.0,90728.0,0.011037]
[1768167838231,0.01979485,90743.0,90725.0,0.00551119]
[1768167838731,0.01965411,90742.0,90725.0,0.00551119]
[1768167839132,0.01965411,90742.0,90729.0,0.011037]
[1768167840236,0.01965411,90742.0,90730.0,0.011037]
[1768167841620,0.02214346,90740.0,90727.0,0.011037]
[1768167841826,0.011036,90739.0,90725.0,0.00551119]
[1768167842130,0.10691066,90734.0,90715.0,0.19771027]
[1768167842333,0.01663227,90733.0,90715.0,0.09832441]
[1768167842536,0.01617742,90732.0,90714.0,0.09938586]
[1768167843131,0.01617742,90732.0,90724.0,0.011037]
[1768167845735,0.10644354,90735.0,90724.0,0.011037]
[1768167845936,0.10644354,90735.0,90726.0,0.011037]
[1768167849738,0.10644354,90735.0,90727.0,0.011037]
[1768167852046,0.10644354,90735.0,90715.0,0.09240599]
[1768167852641,0.00920419,90734.0,90724.0,0.011037]
[1768167853029,0.00920419,90733.0,90724.0,0.011037]
[1768167859246,0.00920419,90733.0,90722.0,0.011038]
[1768167859446,0.00920419,90733.0,90723.0,0.011037]
[1768167860036,0.00920419,90733.0,90724.0,0.011037]
[1768167860236,0.15190464,90734.0,90724.0,0.011037]
[1768167862944,0.15190464,90734.0,90725.0,0.011037]
[1768167863646,0.0938,90735.0,90719.0,0.14992049]
[1768167863841,0.0938,90735.0,90719.0,0.09888259]
[1768167865246,0.0938,90735.0,90727.0,0.011037]
[1768167866747,0.0938,90735.0,90719.0,0.09888259]
[1768167867447,0.0938,90735.0,90727.0,0.011037]
[1768167867647,0.0938,90735.0,90719.0,0.09888259]
[1768167867846,0.15190464,90730.0,90719.0,0.09888259]
[1768167868450,0.15190464,90730.0,90727.0,0.011037]
[1768167868657,0.0938,90735.0,90727.0,0.011037]
[1768167869141,0.0938,90735.0,90719.0,0.09591959]
[1768167869544,0.0938,90735.0,90727.0,0.011037]
[1768167872153,0.0938,90735.0,90719.0,0.09591959]
[1768167873457,0.0938,90735.0,90726.0,0.011037]
[1768167873657,0.0938,90735.0,90719.0,0.09591959]
[1768167873856,0.15190464,90730.0,90719.0,0.09591959]
[1768167874464,0.15190464,90730.0,90726.0,0.011037]
[1768167874659,0.0938,90735.0,90719.0,0.09591959]
[1768167875463,0.0938,90735.0,90727.0,0.011037]
[1768167875666,0.0938,90735.0,90719.0,0.09591959]
[1768167876265,0.15190464,90730.0,90719.0,0.09591959]
[1768167877467,0.15190464,90730.0,90726.0,0.011037]
[1768167877772,0.0938,90735.0,90719.0,0.09591959]
[1768167877970,0.15190464,90730.0,90719.0,0.09591959]
[1768167879467,0.15190464,90730.0,90725.0,0.011037]
[1768167879670,0.24570464,90735.0,90723.0,0.09283306]
[1768167879865,0.24570464,90735.0,90723.0,0.14018116]
[1768167879866,0.15190464,90735.0,90723.0,0.14018116]
[1768167880174,0.0938,90736.0,90727.0,0.011037]
[1768167881278,0.0938,90736.0,90723.0,0.09187006]
[1768167881570,0.0938,90736.0,90727.0,0.011037]
[1768167882168,0.0938,90736.0,90728.0,0.011037]
[1768167888277,0.0938,90736.0,90723.0,0.07087006]
[1768167888685,0.0938,90736.0,90727.0,0.011037]
[1768167888883,0.0938,90736.0,90719.0,0.011038]
[1768167889581,0.0938,90736.0,90728.0,0.011037]
[1768167889771,0.0938,90736.0,90719.0,0.011038]
[1768167890276,0.0938,90736.0,90728.0,0.011037]
[1768167890480,0.0938,90736.0,90720.0,0.011038]
[1768167891983,0.0938,90736.0,90727.0,0.011037]
[1768167892882,0.0938,90736.0,90720.0,0.011038]
[1768167893386,0.0938,90736.0,90728.0,0.011037]
[1768167893779,0.0938,90736.0,90720.0,0.011038]
[1768167894283,0.0938,90736.0,90728.0,0.011037]
[1768167894484,0.0938,90736.0,90720.0,0.011038]
[1768167895288,0.0938,90736.0,90725.0,0.011037]
[1768167895482,0.0938,90736.0,90719.0,0.0473481]
[1768167895886,0.09983677,90736.0,90718.0,0.09283306]
[1768167896384,0.0938,90736.0,90721.0,0.14018116]
[1768167896575,0.0938,90736.0,90721.0,0.09283306]
[1768167897980,0.0938,90736.0,90717.0,0.0473481]
[1768167898180,0.0938,90736.0,90717.0,0.14018116]
[1768167898380,0.0938,90736.0,90726.0,0.011037]
[1768167900184,0.0938,90736.0,90727.0,0.011037]
[1768167900388,0.0938,90736.0,90718.0,0.009075]
[1768167901385,0.0938,90736.0,90728.0,0.011037]
[1768167901585,0.0938,90736.0,90718.0,0.009075]
[1768167901791,0.0938,90736.0,90728.0,0.011037]
[1768167901993,0.0938,90736.0,90717.0,0.14018116]
[1768167902593,0.10034892,90736.0,90717.0,0.14018116]
[1768167902789,0.00654892,90735.0,90717.0,0.14018116]
[1768167903090,0.15190464,90730.0,90717.0,0.10387106]
[1768167903291,0.15190464,90730.0,90726.0,0.011037]
[1768167903492,0.00654892,90735.0,90726.0,0.011037]
[1768167904996,0.00628652,90734.0,90724.0,0.011037]
[1768167905598,0.00594736,90733.0,90722.0,0.011038]
[1768167905789,0.15190464,90730.0,90722.0,0.011038]
[1768167906190,0.15190464,90730.0,90714.0,0.09938586]
[1768167906997,0.15190464,90730.0,90724.0,0.011037]
[1768167907596,0.00594736,90733.0,90724.0,0.011037]
[1768167907792,0.00594736,90733.0,90725.0,0.011037]
[1768167908793,0.0938,90736.0,90716.0,0.14210026]
[1768167908992,0.0938,90736.0,90717.0,0.14210026]
[1768167910294,0.0938,90736.0,90719.0,0.011038]
[1768167910496,0.0938,90736.0,90727.0,0.011037]
[1768167911203,0.0938,90736.0,90728.0,0.011037]
[1768167912504,0.0938,90736.0,90719.0,0.008075]
[1768167912706,0.0938,90736.0,90728.0,0.011037]
[1768167916003,0.09601253,90736.0,90728.0,0.011037]
[1768167917307,0.09601253,90736.0,90729.0,0.011037]
[1768167919609,0.09601253,90736.0,90718.0,0.14036255]
[1768167920511,0.09601253,90736.0,90729.0,0.011037]
[1768167924909,0.09601253,90736.0,90730.0,0.011037]
[1768167925098,0.09601253,90736.0,90721.0,0.011038]
[1768167928509,0.09601253,90736.0,90728.0,0.011037]
[1768167929313,0.09601253,90736.0,90730.0,0.011037]
[1768167929612,0.09601253,90736.0,90721.0,0.011038]
[1768167931416,0.09601253,90736.0,90729.0,0.011037]
[1768167931715,0.09601253,90736.0,90718.0,0.13843755]
[1768167932416,0.09601253,90736.0,90729.0,0.011037]
[1768167933514,0.09601253,90736.0,90718.0,0.13843755]
[1768167933717,0.09601253,90736.0,90727.0,0.011037]
[1768167936116,0.09601253,90736.0,90725.0,0.011037]
[1768167936317,0.0938,90736.0,90725.0,0.011037]
[1768167938918,0.0938,90736.0,90726.0,0.011037]
[1768167943322,0.09043837,90735.0,90723.0,0.011037]
[1768167943621,0.09043837,90735.0,90725.0,0.011037]
[1768167944922,0.09043837,90735.0,90722.0,0.011038]
[1768167947424,0.10147437,90735.0,90722.0,0.011038]
[1768167948425,0.10147437,90735.0,90712.0,0.04486759]
[1768167948426,0.10147437,90735.0,90720.0,0.011038]
[1768167949323,0.09043837,90733.0,90720.0,0.011038]
[1768167950926,0.09043837,90733.0,90721.0,0.011038]
[1768167952124,0.09043837,90733.0,90723.0,0.011037]
[1768167962628,0.09043837,90733.0,90712.0,0.04486759]
[1768167962629,0.09043837,90729.0,90717.0,0.011038]